bitfinex-derivatives/quotes_SOLF0:USTF0_20251101
["timestamp","ask_amount","ask_price","bid_price","bid_amount"]
[1761966160065,2.55,186.76,186.71,4.14936457]
[1761966160270,2.55,186.76,186.72,4.14936457]
[1761966160462,2.55,186.76,186.7,2.68]
[1761966160662,2.55,186.76,186.71,6.82812918]
[1761966160857,2.55,186.76,186.72,4.14812918]
[1761966161062,2.55,186.75,186.71,2.68]
[1761966161269,2.55,186.75,186.72,4.14812918]
[1761966161461,2.55,186.75,186.71,2.68]
[1761966161663,2.55,186.75,186.72,4.14732819]
[1761966161968,2.55,186.75,186.71,2.68]
[1761966162165,2.55,186.75,186.72,4.14699181]
[1761966162372,2.55,186.75,186.71,2.68]
[1761966162672,2.55,186.75,186.72,4.14613387]
[1761966162970,3.63,186.74,186.73,4.14571796]
[1761966163267,6.91190036,186.74,186.73,4.14571796]
[1761966164464,4.36190036,186.74,186.73,6.82571796]
[1761966168473,4.35550369,186.75,186.74,2.92]
[1761966168668,4.35550369,186.75,186.74,4.14571796]
[1761966169172,4.35550369,186.75,186.74,7.06571796]
[1761966173384,4.35195553,186.75,186.74,7.06571796]
[1761966175582,6.90195553,186.78,186.74,4.14571796]
[1761966175782,4.35195553,186.77,186.72,0.03422523]
[1761966175985,4.35195553,186.76,186.73,4.13564731]
[1761966176177,2.55,186.78,186.75,2.92]
[1761966176374,2.55,186.76,186.73,2.92]
[1761966176579,6.90121635,186.75,186.74,4.13553515]
[1761966178178,6.90121635,186.75,186.74,4.1360526]
[1761966179385,4.35121635,186.75,186.74,7.0560526]
[1761966181485,2.55,186.77,186.74,4.1360526]
[1761966181686,4.35121635,186.76,186.72,0.03422523]
[1761966181980,4.35121635,186.75,186.74,2.92]
[1761966182180,77.35964806,186.82,186.74,2.92]
[1761966182181,6.90121635,186.76,186.74,7.05790487]
[1761966182488,4.35121635,186.75,186.74,2.92]
[1761966182783,4.35121635,186.77,186.74,4.13840689]
[1761966182989,4.35121635,186.77,186.73,1.81964806]
[1761966182990,4.35121635,186.76,186.75,4.13840689]
[1761966183191,4.35121635,186.76,186.75,7.05840689]
[1761966183389,6.90121635,186.76,186.75,4.13840689]
[1761966186094,4.35121635,186.76,186.75,7.05840689]
[1761966186294,2.55,186.77,186.75,7.05840689]
[1761966186499,4.35121635,186.76,186.75,2.92]
[1761966186693,4.35121635,186.76,186.75,7.05874256]
[1761966190000,2.55,186.8,186.76,2.92]
[1761966190300,4.35570646,186.79,186.77,7.05874256]
[1761966190500,4.35570646,186.78,186.77,2.92]
[1761966190693,4.35570646,186.78,186.77,7.06053476]
[1761966196399,4.35570646,186.78,186.77,12.05350507]
[1761966196707,2.55,186.86,186.78,2.91]
[1761966196894,2.55,186.86,186.8,2.91]
[1761966197095,2.55,186.86,186.82,2.91]
[1761966197392,2.55,186.86,186.83,4.14053476]
[1761966197592,2.55,186.86,186.84,4.14302412]
[1761966197898,2.55,186.86,186.82,2.91]
[1761966198098,2.55,186.86,186.83,7.05268115]
[1761966198300,1.81964806,186.88,186.84,7.05268115]
[1761966198599,2.55,186.87,186.85,4.14268115]
[1761966198799,2.55,186.87,186.84,2.91]
[1761966199098,2.55,186.87,186.85,4.135591]
[1761966199298,2.55,186.87,186.84,2.91]
[1761966200702,2.55,186.87,186.84,2.94377212]
[1761966201199,1.81964806,186.88,186.84,2.94377212]
[1761966201399,4.36964806,186.88,186.84,2.94377212]
[1761966202188,4.36964806,186.88,186.86,2.91]
[1761966202393,2.55,186.88,186.86,2.91]
[1761966208500,4.26201189,186.87,186.86,2.91]
[1761966213904,4.26201189,186.89,186.86,2.91]
[1761966214110,4.26201189,186.88,186.86,2.91]
[1761966220810,6.81201189,186.88,186.86,2.91]
[1761966221010,4.26201189,186.87,186.86,2.91]
[1761966222619,8.4742158,186.87,186.86,2.91]
[1761966225321,11.0242158,186.87,186.84,2.93377212]
[1761966225518,8.4742158,186.86,186.85,7.0496085]
[1761966226016,11.0242158,186.86,186.85,4.1496085]
[1761966226221,11.0242158,186.86,186.84,0.03377212]
[1761966226222,2.55,186.85,186.84,0.03377212]
[1761966226519,11.0242158,186.85,186.84,4.18547591]
[1761966227627,13.86185738,186.85,186.84,0.03377212]
[1761966230432,13.86185738,186.85,186.84,4.18977234]
[1761966231826,13.87226393,186.85,186.84,4.18977234]
[1761966232630,13.87226393,186.85,186.84,0.03377212]
[1761966238936,13.87226393,186.85,186.84,4.20075646]
[1761966240833,9.6513282,186.85,186.84,4.20075646]
[1761966241034,13.88410917,186.85,186.84,4.20075646]
[1761966243441,2.55,186.84,186.79,4.95815769]
[1761966243736,2.55,186.81,186.79,4.95815769]
[1761966243940,11.04646759,186.8,186.79,4.95815769]
[1761966244135,2.55,186.79,186.77,4.95815769]
[1761966244345,8.49646759,186.78,186.76,7.75815769]
[1761966244545,8.49646759,186.77,186.76,7.75815769]
[1761966244948,8.49646759,186.77,186.76,4.95815769]
[1761966246543,8.49646759,186.77,186.74,2.8]
[1761966246544,8.49646759,186.77,186.75,7.75815769]
[1761966246839,8.49646759,186.76,186.75,7.75815769]
[1761966249745,9.01729226,186.76,186.75,7.75815769]
[1761966251142,4.78451129,186.76,186.75,2.8]
[1761966253045,9.05671325,186.76,186.75,2.8]
[1761966253239,11.60671325,186.76,186.75,2.8]
[1761966253445,11.60671325,186.76,186.74,2.8]
[1761966253646,9.05671325,186.75,186.74,2.8]
[1761966253849,2.55,186.74,186.72,4.95815769]
[1761966254044,4.78451129,186.73,186.72,4.95815769]
[1761966254243,4.78451129,186.73,186.72,7.75815769]
[1761966255446,4.78451129,186.73,186.72,11.87565821]
[1761966263666,4.78451129,186.73,186.72,12.95565821]
[1761966263868,4.77831284,186.73,186.72,10.15565821]
[1761966264069,4.77831284,186.73,186.72,9.07565821]
[1761966264367,4.77831284,186.73,186.72,11.96565821]
[1761966264968,4.77831284,186.73,186.72,8.08750052]
[1761966265772,2.55,186.82,186.73,2.89]
[1761966265962,6.81883947,186.81,186.76,2.89]
[1761966266162,4.26883947,186.8,186.78,2.89]
[1761966266357,2.55,186.81,186.79,4.11750052]
[1761966266561,2.55,186.81,186.8,4.11750052]
[1761966266765,6.81965438,186.81,186.8,4.11750052]
[1761966268769,4.26965438,186.81,186.8,7.00750052]
[1761966269166,6.81965438,186.81,186.8,7.00750052]
[1761966269364,6.81965438,186.81,186.8,4.11750052]
[1761966269764,4.26965438,186.81,186.8,7.00750052]
[1761966271574,6.81965438,186.81,186.8,4.11750052]
[1761966272864,6.81965438,186.81,186.8,2.61420994]
[1761966273070,2.55,186.8,186.75,4.96447982]
[1761966273269,1.81664026,186.82,186.75,4.96447982]
[1761966273270,2.55,186.78,186.75,4.96447982]
[1761966273565,2.55,186.76,186.75,4.96447982]
[1761966273770,6.81965438,186.76,186.75,4.96447982]
[1761966273971,6.81965438,186.76,186.74,7.85447982]
[1761966274176,6.81965438,186.75,186.72,6.61930643]
[1761966274371,4.27774303,186.74,186.73,4.97529294]
[1761966274970,4.27774303,186.74,186.73,7.86529294]
[1761966275878,4.27774303,186.74,186.73,2.89]
[1761966277683,8.97183999,186.74,186.73,2.89]
[1761966281482,8.97460789,186.74,186.73,2.89]
[1761966285073,8.97460789,186.74,186.73,7.00500544]
[1761966286681,8.93751399,186.74,186.73,7.00500544]
[1761966289183,11.48751399,186.74,186.73,4.11500544]
[1761966289383,11.48751399,186.74,186.73,9.09883053]
[1761966289682,8.93751399,186.74,186.73,11.97883053]
[1761966290278,8.93751399,186.74,186.73,6.99500544]
[1761966295488,8.93751399,186.74,186.73,13.61431187]
[1761966299094,2.07988704,186.74,186.73,6.99500544]
[1761966301483,2.55,186.83,186.74,2.88]
[1761966301686,1.81664026,186.85,186.79,7.85895581]
[1761966301687,2.55,186.81,186.79,7.85895581]
[1761966301890,2.55,186.81,186.8,4.11500544]
[1761966302090,6.79235173,186.81,186.8,4.11500544]
[1761966303190,6.79235173,186.81,186.75,4.97895581]
[1761966303191,2.55,186.8,186.75,4.97895581]
[1761966303495,2.55,186.78,186.76,4.14588061]
[1761966303693,2.55,186.76,186.75,4.97895581]
[1761966303995,6.79235173,186.76,186.75,4.14727475]
[1761966304693,6.79235173,186.76,186.75,7.02727475]
[1761966304694,4.24235173,186.76,186.75,7.02727475]
[1761966304897,4.24235173,186.76,186.75,15.48252275]
[1761966307584,4.24165257,186.82,186.76,2.88]
[1761966307893,6.79165257,186.81,186.79,4.97908055]
[1761966308096,4.24165257,186.8,186.79,4.97908055]
[1761966308287,4.24165257,186.8,186.79,9.12257599]
[1761966309292,4.24165257,186.8,186.79,12.00257599]
[1761966309793,2.55,186.84,186.79,12.00257599]
[1761966309998,6.79037001,186.83,186.8,7.02349544]
[1761966310296,4.24037001,186.82,186.81,4.13529006]
[1761966311586,6.79037001,186.82,186.81,4.13529006]
[1761966313606,11.37843415,186.82,186.81,4.13529006]
[1761966337322,11.37843415,186.82,186.81,6.96529006]
[1761966337509,11.37843415,186.82,186.81,4.13529006]
[1761966344721,8.82843415,186.82,186.81,6.96529006]
[1761966344918,11.37843415,186.82,186.81,6.96529006]
[1761966345119,8.82843415,186.82,186.81,6.96529006]
[1761966345821,8.82843415,186.82,186.81,11.94160017]
[1761966347219,8.82843415,186.82,186.81,6.96529006]
[1761966349324,8.82843415,186.82,186.81,13.60406413]
[1761966350717,8.83605368,186.82,186.81,13.60406413]
[1761966351722,4.59568367,186.82,186.81,13.60406413]
[1761966351919,8.85866727,186.82,186.81,6.96529006]
[1761966355222,4.2629836,186.82,186.81,6.96529006]
[1761966355524,8.85523247,186.82,186.81,6.96529006]
[1761966357028,4.59224887,186.82,186.81,6.96529006]
[1761966359217,0.03390263,186.83,186.82,2.79]
[1761966359419,4.62185707,186.83,186.82,6.92529006]
[1761966360222,4.62169598,186.83,186.82,6.92529006]
[1761966361826,4.62169598,186.83,186.82,13.55390374]
[1761966363623,4.62169598,186.83,186.82,9.41861368]
[1761966363823,4.62169598,186.83,186.82,13.55957661]
[1761966365023,4.62169598,186.83,186.82,6.93096293]
[1761966366418,4.61950112,186.83,186.82,6.93096293]
[1761966366621,11.40319356,186.83,186.82,9.11143841]
[1761966367125,11.40319356,186.83,186.82,4.14096293]
[1761966367822,11.40319356,186.83,186.82,2.75347303]
[1761966369836,2.53,186.82,186.81,4.9729972]
[1761966370033,11.36929093,186.82,186.81,4.9729972]
[1761966372534,11.36929093,186.82,186.8,2.79]
[1761966372729,4.58559849,186.81,186.8,2.79]
[1761966373436,4.58559849,186.81,186.8,9.41861368]
[1761966374234,4.58559849,186.81,186.8,2.79]
[1761966375127,4.58559849,186.81,186.8,9.41861368]
[1761966378745,4.58559849,186.81,186.8,2.79]
[1761966379934,4.58559849,186.81,186.8,6.96469615]
[1761966388049,4.58559849,186.81,186.8,6.9672203]
[1761966389252,4.58559849,186.81,186.8,16.92513192]
[1761966390247,0.03390263,186.83,186.8,16.92513192]
[1761966390451,0.03390263,186.83,186.82,6.63970584]
[1761966390651,4.27532108,186.83,186.82,10.81692614]
[1761966392549,4.27532108,186.83,186.82,13.62692614]
[1761966392752,4.27532108,186.83,186.82,6.9872203]
[1761966399956,6.82532108,186.83,186.82,6.9872203]
[1761966400160,6.82532108,186.83,186.82,10.81689248]
[1761966400955,6.82532108,186.83,186.82,13.62689248]
[1761966401261,4.27532108,186.83,186.82,13.62689248]
[1761966402460,8.77296021,186.83,186.82,13.62689248]
[1761966403663,8.77296021,186.83,186.82,6.9872203]
[1761966406963,11.32296021,186.83,186.82,4.1772203]
[1761966407364,11.32296021,186.83,186.82,6.9272203]
[1761966407759,8.77296021,186.83,186.82,6.9272203]
[1761966409064,2.55,186.89,186.83,2.75]
[1761966409268,2.55,186.89,186.87,4.97735766]
[1761966409463,2.55,186.89,186.88,4.1772203]
[1761966421081,6.95812317,186.89,186.88,4.1772203]
[1761966424790,4.40812317,186.89,186.84,4.97735766]
[1761966424991,1.81609703,186.87,186.83,4.97735766]
[1761966425194,4.40812317,186.86,186.83,4.97735766]
[1761966425491,4.40812317,186.85,186.83,4.97735766]
[1761966425691,4.40812317,186.84,186.83,4.97735766]
[1761966428492,4.40812317,186.84,186.81,4.97735766]
[1761966428796,6.2242202,186.83,186.78,4.97735766]
[1761966428997,4.40812317,186.82,186.78,4.97735766]
[1761966429200,4.40812317,186.82,186.64,16.1]
[1761966429201,6.2242202,186.81,186.77,4.97735766]
[1761966429501,4.40812317,186.8,186.76,4.97735766]
[1761966429701,4.40812317,186.79,186.76,7.72735766]
[1761966429898,4.40812317,186.78,186.76,7.72735766]
[1761966430097,4.40812317,186.77,186.76,2.75]
[1761966430301,4.93205627,186.77,186.76,7.72735766]
[1761966430604,4.93205627,186.77,186.76,4.97735766]
[1761966431302,4.93205627,186.77,186.75,4.97735766]
[1761966431493,4.93205627,186.76,186.75,7.72735766]
[1761966432797,4.89792969,186.76,186.75,2.75]
[1761966438507,1.94,186.85,186.75,3.83]
[1761966438709,1.94,186.85,186.81,2.67]
[1761966439213,1.94,186.85,186.8,1.81609703]
[1761966439412,1.94,186.85,186.8,4.50609703]
[1761966440210,1.94,186.85,186.81,2.69]
[1761966444410,1.94,186.85,186.82,2.69]
[1761966447518,1.81609703,186.91,186.8,4.96797034]
[1761966447519,2.89,186.95,186.83,4.50609703]
[1761966447724,2.89,186.92,186.84,2.69]
[1761966450620,2.89,186.9,186.84,2.69]
[1761966450823,2.89,186.88,186.84,2.69]
[1761966451022,4.81919824,186.87,186.84,2.69]
[1761966451214,2.89,186.85,186.83,6.78406737]
[1761966451413,4.81919824,186.84,186.83,4.50609703]
[1761966451622,4.81919824,186.84,186.83,2.69]
[1761966458528,4.81919824,186.84,186.83,7.65797034]
[1761966460522,4.81919824,186.84,186.83,2.69]
[1761966466542,4.8155715,186.84,186.83,2.69]
[1761966467039,4.8155715,186.84,186.83,7.65193244]
[1761966470144,4.8155715,186.84,186.83,10.48917691]
[1761966471740,4.8155715,186.84,186.83,7.65193244]
[1761966472144,4.8155715,186.84,186.83,2.69]
[1761966480555,4.8155715,186.84,186.83,12.16372136]
[1761966480763,4.8155715,186.84,186.83,5.52724447]
[1761966481566,2.78,186.89,186.84,2.66]
[1761966481763,2.78,186.89,186.87,2.66]
[1761966482065,2.78,186.89,186.88,4.12961205]
[1761966482468,2.78,186.89,186.88,9.09529917]
[1761966483067,2.78,186.89,186.88,4.12961205]
[1761966483268,2.78,186.89,186.88,9.09558457]
[1761966483463,2.83724447,186.98,186.88,11.75558457]
[1761966483654,2.78,186.97,186.9,4.96597252]
[1761966483860,2.78,186.97,186.91,4.12961205]
[1761966484065,2.78,186.97,186.92,4.12961205]
[1761966484261,2.78,186.97,186.93,4.12961205]
[1761966484467,2.78,186.97,186.94,4.12961205]
[1761966484668,2.78,186.97,186.9,4.96597252]
[1761966484960,2.78,186.97,186.91,4.10540235]
[1761966485158,2.78,186.97,186.92,4.10540235]
[1761966485365,2.78,186.97,186.93,4.10540235]
[1761966485560,2.78,186.97,186.94,4.10540235]
[1761966485764,2.78,186.97,186.9,4.96597252]
[1761966485964,2.78,186.97,186.91,4.1044841]
[1761966486164,2.78,186.97,186.92,4.1044841]
[1761966486365,2.78,186.97,186.93,4.1044841]
[1761966486661,2.78,186.97,186.94,4.1044841]
[1761966486868,2.78,186.97,186.95,4.10270214]
[1761966487067,2.78,186.97,186.9,7.62597252]
[1761966487267,2.78,186.97,186.91,6.76181934]
[1761966487571,2.78,186.97,186.92,6.76182133]
[1761966487770,2.78,186.97,186.93,4.10182133]
[1761966487970,2.78,186.97,186.94,4.10182133]
[1761966488172,2.78,186.97,186.92,2.66]
[1761966488367,2.78,186.97,186.93,4.10070612]
[1761966488670,2.78,186.97,186.94,4.10070612]
[1761966488872,2.78,186.97,186.95,4.10070612]
[1761966489071,2.78,186.97,186.92,2.66]
[1761966489373,2.78,186.97,186.93,4.13704995]
[1761966489557,2.78,186.97,186.94,4.13704995]
[1761966489764,2.78,186.97,186.95,4.13704995]
[1761966489965,2.78,186.97,186.9,7.6195859]
[1761966490273,2.78,186.97,186.91,4.13642565]
[1761966490466,2.78,186.97,186.92,4.13642565]
[1761966490772,2.78,186.97,186.93,4.13642565]
[1761966490963,2.78,186.97,186.94,4.13642565]
[1761966491164,2.78,186.97,186.95,4.13642565]
[1761966491366,2.78,186.97,186.9,7.6195859]
[1761966491568,2.78,186.97,186.91,4.13554226]
[1761966491866,2.78,186.97,186.92,4.13554226]
[1761966492067,2.78,186.97,186.93,4.13554226]
[1761966492275,2.78,186.97,186.94,4.13554226]
[1761966492574,2.78,186.97,186.95,4.13554226]
[1761966492765,4.22832365,186.96,186.92,0.03381813]
[1761966492966,2.78,186.94,186.93,4.13509934]
[1761966493170,7.00832365,186.94,186.93,4.13509934]
[1761966493468,11.48049013,186.94,186.93,4.13509934]
[1761966495576,11.47929149,186.94,186.93,4.13392636]
[1761966500884,11.46929149,186.94,186.93,6.97392636]
[1761966501078,11.46929149,186.94,186.93,4.13392636]
[1761966502394,8.69929149,186.94,186.93,6.97392636]
[1761966502578,11.46929149,186.94,186.93,4.13392636]
[1761966507870,8.69929149,186.94,186.93,6.97392636]
[1761966508072,11.46929149,186.94,186.93,4.13392636]
[1761966520290,11.46929149,186.94,186.93,9.08769735]
[1761966520690,11.46929149,186.94,186.93,11.92769735]
[1761966520886,8.69929149,186.94,186.93,11.92769735]
[1761966522695,11.46929149,186.94,186.93,9.08769735]
[1761966523097,11.46929149,186.94,186.93,4.13392636]
[1761966527784,11.46929149,186.94,186.93,9.10105739]
[1761966528798,11.46929149,186.94,186.93,4.13392636]
[1761966529893,2.66,186.93,186.85,6.62101001]
[1761966530098,2.66,186.87,186.82,2.89]
[1761966530291,2.66,186.85,186.82,9.51101001]
[1761966530487,8.69929149,186.84,186.82,9.51101001]
[1761966530687,4.47096784,186.83,186.82,9.51101001]
[1761966532198,4.47096784,186.83,186.82,2.89]
[1761966535383,4.47096784,186.83,186.82,9.51101001]
[1761966536191,4.47096784,186.83,186.82,11.32553155]
[1761966539304,4.47096784,186.83,186.82,2.89]
[1761966541702,4.47096784,186.83,186.82,4.70452154]
[1761966541907,4.47096784,186.83,186.82,2.89]
[1761966542593,2.66,186.82,186.8,6.62101001]
[1761966542804,7.13096784,186.81,186.79,2.89]
[1761966543007,4.47096784,186.8,186.79,2.89]
[1761966547209,4.47096784,186.8,186.79,4.70452154]
[1761966550613,4.95249084,186.8,186.79,4.70452154]
[1761966551306,2.69382967,186.84,186.79,4.70452154]
[1761966551604,2.66,186.82,186.79,4.70452154]
[1761966551804,4.95187628,186.81,186.79,4.70452154]
[1761966552010,2.66,186.82,186.79,4.70452154]
[1761966552197,4.95187628,186.81,186.79,4.70452154]
[1761966552398,2.66,186.82,186.79,4.70452154]
[1761966552612,4.95142034,186.81,186.79,4.70452154]
[1761966552801,2.66,186.82,186.79,4.70452154]
[1761966552997,4.95142034,186.81,186.79,4.70452154]
[1761966553210,2.66,186.82,186.79,4.70452154]
[1761966553410,4.95106038,186.81,186.79,4.70452154]
[1761966553611,2.66,186.82,186.79,4.70452154]
[1761966553810,4.95106077,186.81,186.79,4.70452154]
[1761966554010,2.66,186.82,186.79,4.70452154]
[1761966554212,4.95106077,186.81,186.79,4.70452154]
[1761966554409,2.66,186.79,186.77,2.89]
[1761966554712,2.66,186.79,186.75,2.89]
[1761966555513,7.61071881,186.78,186.75,2.89]
[1761966555714,2.66,186.78,186.75,2.89]
[1761966556116,1.81452154,186.86,186.75,2.89]
[1761966556117,2.65,186.85,186.75,2.89]
[1761966556417,2.65,186.83,186.75,2.89]
[1761966556712,2.65,186.81,186.75,2.89]
[1761966556912,2.65,186.79,186.75,2.89]
[1761966557102,2.65,186.77,186.75,2.89]
[1761966558218,2.82,186.82,186.75,2.89]
[1761966558419,2.82,186.8,186.75,2.89]
[1761966558616,7.76886978,186.79,186.75,2.89]
[1761966558919,4.94886978,186.78,186.75,2.89]
[1761966559112,2.82,186.79,186.75,2.89]
[1761966559318,4.9488698,186.78,186.75,2.89]
[1761966559520,2.82,186.79,186.75,2.89]
[1761966559722,7.76854552,186.78,186.75,2.89]
[1761966559911,2.82,186.78,186.75,2.89]
[1761966561715,4.94867176,186.77,186.72,2.77]
[1761966562018,2.82,186.76,186.72,2.77]
[1761966562215,2.82,186.76,186.7,75.42]
[1761966562428,2.82,186.74,186.7,75.42]
[1761966562808,2.82,186.74,186.7,78.19]
[1761966565722,2.82,186.74,186.71,2.77]
[1761966571915,2.76,186.81,186.71,2.77]
[1761966572122,107.1,186.95,186.74,2.85]
[1761966572123,2.76,186.79,186.74,2.85]
[1761966572318,4.94933425,186.78,186.74,2.85]
[1761966572517,4.94933425,186.77,186.76,1.81452154]
[1761966572728,4.94933425,186.77,186.74,2.85]
[1761966572926,2.76,186.79,186.75,4.66452154]
[1761966573125,2.76,186.77,186.75,4.66452154]
[1761966573330,4.95278996,186.76,186.75,4.66452154]
[1761966577134,2.76,186.8,186.75,4.66452154]
[1761966577135,2.76,186.8,186.76,2.85]
[1761966577441,7.71521087,186.79,186.76,2.85]
[1761966577634,4.95521087,186.78,186.76,2.85]
[1761966577835,4.95521087,186.77,186.76,2.85]
[1761966579536,2.76,186.82,186.76,2.85]
[1761966580139,2.76,186.8,186.78,2.83873517]
[1761966580330,2.76,186.8,186.74,5.68873517]
[1761966582936,2.76,186.78,186.74,5.68873517]
[1761966583640,2.76,186.78,186.75,2.85]
[1761966583839,2.76,186.78,186.72,6.62101001]
[1761966584135,2.76,186.78,186.71,5.68873517]
[1761966584136,2.76,186.76,186.71,12.30974518]
[1761966584338,2.76,186.76,186.71,6.62101001]
[1761966584540,4.25520483,186.75,186.69,6.62101001]
[1761966584732,2.76,186.74,186.69,6.62101001]
[1761966584945,2.76,186.74,186.7,2.85]
[1761966589741,2.76,186.74,186.68,6.62101001]
[1761966589941,2.76,186.74,186.71,4.95771773]
[1761966590240,2.76,186.74,186.72,2.83873517]
[1761966590649,2.76,186.74,186.71,4.95771773]
[1761966590849,2.76,186.74,186.7,4.95771773]
[1761966591447,2.81,186.72,186.7,4.95771773]
[1761966591647,4.88910128,186.71,186.7,4.95771773]
[1761966592354,4.88910128,186.71,186.7,7.76771773]
[1761966592949,7.69910128,186.71,186.7,4.95771773]
[1761966595051,2.81,186.7,186.67,4.95771773]
[1761966595254,2.81,186.68,186.66,4.95771773]
[1761966595455,7.69910128,186.67,186.65,4.95771773]
[1761966595754,7.69910128,186.66,186.65,4.95771773]
[1761966596046,7.69910128,186.66,186.64,4.95771773]
[1761966596250,4.88910128,186.65,186.63,7.76771773]
[1761966596451,2.81,186.66,186.63,7.76771773]
[1761966596651,4.67564554,186.65,186.63,7.76771773]
[1761966596947,2.81,186.66,186.64,2.81]
[1761966597957,4.67441131,186.65,186.64,2.81]
[1761966599552,2.81,186.64,186.62,3.77114859]
[1761966599854,4.67255079,186.63,186.62,0.93241342]
[1761966600058,2.81,186.64,186.62,0.93241342]
[1761966600262,2.81,186.64,186.61,9.69198681]
[1761966600460,7.48283038,186.63,186.61,9.69198681]
[1761966600762,2.81,186.63,186.61,9.69198681]
[1761966601162,2.81,186.63,186.61,12.50198681]
[1761966603062,2.83873517,186.75,186.61,12.50198681]
[1761966603261,2.81,186.73,186.61,12.50198681]
[1761966603457,2.81,186.71,186.62,2.81]
[1761966603762,2.81,186.69,186.62,2.81]
[1761966603963,41.68459124,186.76,186.62,2.81]
[1761966603964,2.81,186.67,186.62,2.81]
[1761966604164,7.47820642,186.66,186.62,2.81]
[1761966604360,2.81,186.66,186.62,2.81]
[1761966609866,2.81,186.75,186.63,2.81]
[1761966610176,2.81,186.73,186.63,2.81]
[1761966610374,2.81,186.71,186.63,2.81]
[1761966610571,2.81,186.69,186.63,2.81]
[1761966610874,7.45271565,186.68,186.63,2.81]
[1761966611063,2.81,186.68,186.63,2.81]
[1761966617476,2.71,186.71,186.63,2.81]
[1761966617671,4.64099263,186.7,186.63,2.81]
[1761966618270,7.35099263,186.7,186.63,2.81]
[1761966618470,4.64099263,186.69,186.63,2.81]
[1761966620179,7.54099263,186.69,186.68,2.83873517]
[1761966621277,7.54099263,186.69,186.65,2.7]
[1761966621582,2.9,186.73,186.68,2.7]
[1761966621773,8.91216017,186.72,186.68,2.7]
[1761966621975,4.64393951,186.71,186.68,2.7]
[1761966622175,4.64393951,186.7,186.68,2.7]
[1761966622481,2.9,186.73,186.68,2.7]
[1761966622684,4.64500487,186.72,186.68,2.7]
[1761966622883,4.64500487,186.71,186.68,2.7]
[1761966623089,2.9,186.73,186.68,2.7]
[1761966623383,4.64500408,186.72,186.68,2.7]
[1761966623583,4.64500408,186.71,186.68,2.7]
[1761966623785,2.9,186.73,186.68,2.7]
[1761966623984,7.54653938,186.72,186.68,2.7]
[1761966624173,4.64653938,186.71,186.68,2.7]
[1761966624373,19.19574442,186.82,186.68,2.7]
[1761966624374,4.64821591,186.7,186.68,2.7]
[1761966624573,2.9,186.75,186.68,2.7]
[1761966624776,8.91929202,186.74,186.68,2.7]
[1761966624982,4.64795115,186.73,186.68,2.7]
[1761966625182,4.64795115,186.72,186.68,2.7]
[1761966625482,2.9,186.75,186.68,2.7]
[1761966625786,2.9,186.75,186.69,2.7]
[1761966625787,8.92228775,186.74,186.69,2.7]
[1761966625986,4.64951306,186.73,186.69,2.7]
[1761966626178,4.64951306,186.72,186.69,2.7]
[1761966626381,2.9,186.75,186.69,2.7]
[1761966626584,2.9,186.73,186.69,2.7]
[1761966626882,7.55119797,186.72,186.69,2.7]
[1761966627084,2.9,186.72,186.69,2.7]
[1761966627286,4.65303204,186.71,186.69,2.7]
[1761966627490,2.9,186.72,186.69,2.7]
[1761966627794,4.65303204,186.71,186.69,2.7]
[1761966628089,7.55306605,186.7,186.68,2.7]
[1761966628287,2.9,186.7,186.68,2.7]
[1761966628790,2.9,186.8,186.68,2.7]
[1761966628983,2.9,186.78,186.7,4.95499023]
[1761966629288,11.8323056,186.77,186.71,2.7]
[1761966629488,2.9,186.75,186.71,2.7]
[1761966629689,11.8323056,186.74,186.71,2.7]
[1761966629880,4.65473618,186.73,186.71,2.7]
[1761966630084,4.65473618,186.72,186.71,2.7]
[1761966630284,2.9,186.74,186.71,2.7]
[1761966630485,4.6556906,186.73,186.71,7.65499023]
[1761966630686,2.9,186.74,186.71,7.65499023]
[1761966630989,4.65552623,186.73,186.71,7.65499023]
[1761966631177,2.9,186.74,186.71,7.65499023]